Cogmind - Beta 15 @@@ ROGUE MODE // 2025.07.16 @ 04:18:41 Player: Inverisimilidude Result: Destroyed by G-50 Soldier with Heavy Laser Performance ------------- Evolutions (4) 2000 Regions Visited (5) 1000 Robots Destroyed (52) 260 Value Destroyed (1447) 1447 Prototype IDs (3) 60 Alien Tech Used (0) 0 Bonus (0) 0 TOTAL SCORE: 4767 Bonus ------- None Cogmind --------- Core Integrity 0/850 Matter 300/300 Energy 98/100 System Corruption 0% Temperature Cool (9) Movement Core (50) Location -6/Factory Parts ------- > --- POWER (1) -------- (None) > --- PROPULSION (5) --- (None) > --- UTILITY (6) ------ (None) > --- WEAPON (3) ------- (None) > --- INVENTORY (5) ---- Angular Momentum Engine Advanced Weight Redist. System Cloaking Device Peak State ------------ > --- POWER ------------ Improved Ion Engine > --- PROPULSION ------- Aluminum Leg Improved Carbon-fiber Leg Improved Carbon-fiber Leg Improved Carbon-fiber Leg > --- UTILITY ---------- Improved Cooling System Large Storage Unit Improved Sensor Array Improved Signal Interpreter Hacking Suite > --- WEAPON ----------- Particle Gun Gauss Cannon Advanced EMP Blaster > --- INVENTORY -------- Improved Carbon-fiber Leg Improved Carbon-fiber Leg Improved Titanium Leg Improved Cooling System Improved Cooling System Small Storage Unit Advanced Weight Redist. System Improved Sensor Array Improved Medium Armor Plating System Shield Particle Gun EM Pulse Cannon Gauss Cannon Gauss Cannon Heavy Mace [Rating: 44] Favorites ----------- Power Improved Ion Engine Engine Improved Ion Engine Propulsion Aluminum Leg Leg Aluminum Leg Wheel Armored Wheel Flight Unit Cooled VTOL Module Utility Large Storage Unit Device Seismic Detector Storage Large Storage Unit Processor Improved Targeting Computer Hackware Hacking Suite Weapon Particle Gun Energy Gun Particle Gun Energy Cannon Ion Cannon Ballistic Gun Light Assault Rifle Ballistic Cannon Gauss Cannon Launcher Advanced EMP Blaster Special Weapon Welding Torch Impact Weapon Heavy Mace Build | -11 -10 -9 -8 -7 -6 ------- Run | Yrd Mat Mat Mat Fac Fac Slots Evolved 8 | . . 2 2 2 2 Power . | . . . . . . Propulsion 3 | . . 1 1 . 1 Utility 4 | . . 1 1 1 1 Weapon 1 | . . . . 1 . Parts Attached 54 | 7 2 7 33 4 1 Power 5 | 1 . . 4 . . Engine 5 | 1 . . 4 . . Core . | . . . . . . Reactor . | . . . . . . Propulsion 17 | 2 . 2 11 2 . Treads . | . . . . . . Leg 14 | 2 . 2 9 1 . Wheel 2 | . . . 2 . . Hover . | . . . . . . Flight 1 | . . . . 1 . Utility 15 | 2 1 2 8 1 1 Device 8 | 1 . 1 5 . 1 Storage 3 | 1 1 . 1 . . Processor 3 | . . 1 2 . . Hackware 1 | . . . . 1 . Protection . | . . . . . . Artifact . | . . . . . . Weapon 17 | 2 1 3 10 1 . Energy Gun 6 | . 1 2 3 . . Energy Cannon 1 | . . . 1 . . Ballistic Gun 3 | 2 . . 1 . . Ballistic Cannon 3 | . . . 2 1 . Launcher 2 | . . 1 1 . . Special Weapon 1 | . . . 1 . . Impact Weapon 1 | . . . 1 . . Slashing Weapon . | . . . . . . Piercing Weapon . | . . . . . . Special Melee Weapon . | . . . . . . Unidentified Prototypes 3 | . . . 2 1 . Parts Lost 15 | . . 1 12 1 1 Power 3 | . . . 2 1 . Propulsion 7 | . . . 7 . . Utility 2 | . . . 1 . 1 Weapon 3 | . . 1 2 . . Highest Loss Streak 4 | . . 1 4 1 1 To Critical Strikes . | . . . . . . Average Backups 11 | 2 5 9 12 13 2 Power 1 | . 1 1 1 . . Propulsion 1 | . 1 2 1 2 . Utility 4 | . 1 2 4 6 1 Weapon 4 | . 1 2 5 4 . Tool/Special . | . . . . . . Unused Backups 20 | . 2 1 4 10 3 Power 2 | . . . 1 . 1 Propulsion 4 | . . 1 . 3 . Utility 10 | . 1 . 2 5 2 Weapon 4 | . 1 . 1 2 . Tool/Special . | . . . . . . Average Slot Usage (%) 89 | . 97 94 95 88 1 Engine 8 | . 14 11 8 6 . Leg 26 | . 28 33 27 26 . Wheel 3 | . . . 6 1 . Device 15 | . 14 12 17 14 1 Storage 8 | . 14 11 9 6 . Processor 7 | . . 5 9 6 . Energy Gun 10 | . 2 12 11 13 . Energy Cannon 1 | . . . 2 . . Ballistic Gun 2 | . 23 7 1 . . Ballistic Cannon 2 | . . . 2 6 . Peak Build Rating 44 | 7 9 14 39 44 4 Average Rating 22 | 5 7 11 25 37 1 On Entrance 10 | . 7 9 12 35 . Naked Turns 186 | . . . . 44 142 Heaviest Build 46 | 13 20 23 44 46 1 Greatest Support 64 | 20 20 30 54 64 3 Greatest Overweight (x) 15 | . . . 2 15 . Average Overweight (x) . | . . . . . . Largest Inventory Capacity 15 | 8 10 10 15 15 5 Average Capacity 13 | 6 9 10 14 14 5 Most Carried 15 | 4 9 10 15 15 3 Average Carried 11 | 2 5 9 12 13 2 Final Capacity 15 | 8 10 10 15 5 5 Final Carried 14 | 3 9 9 14 2 3 Class Distribution -------------------- 58% | Mutant 28% | Scavenger-Mutant 13% | Skirmisher Dominant Class ---------------- Mutant | -10/Materials Mutant | -9/Materials Mutant | -8/Materials Skirmisher | -7/Factory Mutant | -6/Factory Resources | -11 -10 -9 -8 -7 -6 ----------- Run | Yrd Mat Mat Mat Fac Fac Matter Collected 1009 | 290 21 87 517 74 20 Remotely . | . . . . . . Salvage Created 1656 | 106 30 144 1112 264 . Parts 111 | 5 2 17 70 17 . Haulers Intercepted 1 | . . . 1 . . Recyclers Shooed 1 | . . . . 1 . Parts Field Recycled . | . . . . . . Retrieved Matter . | . . . . . . Parts Self-Destructed . | . . . . . . Prevented . | . . . . . . Kills | -11 -10 -9 -8 -7 -6 ------- Run | Yrd Mat Mat Mat Fac Fac Combat Hostiles Destroyed 41 | . 1 7 27 6 . Guns 21 | . 1 2 18 . . Cannons 7 | . . . 6 1 . AOE 13 | . . 5 3 5 . Classes Destroyed 12 | 2 1 3 5 1 . Builder 3 | . . 1 1 1 . Tunneler 2 | 1 . . 1 . . Hauler 1 | . . . 1 . . Recycler 1 | 1 . . . . . Operator 1 | . . . 1 . . Watcher 3 | . . 2 1 . . Swarmer 18 | . . 5 10 3 . Grunt 14 | . 1 2 9 2 . Duelist 2 | . . . 2 . . Sentry 5 | . . . 5 . . Hunter 1 | . . . 1 . . Programmer 1 | . . . . 1 . Best Kill Streak 5 | 2 1 4 5 5 . Combat Bots Only 5 | . 1 4 4 5 . Max Kills in Single Turn 5 | 1 1 2 2 5 . Gunslinging . | . . . . . . Exploded 5 | . . 2 1 5 . Melee . | . . . . . . Uniques/NPCs Destroyed . | . . . . . . Combat | -11 -10 -9 -8 -7 -6 -------- Run | Yrd Mat Mat Mat Fac Fac Hostile Shots Fired 302 | . 2 16 159 55 70 Missed 96 | . . 5 41 19 31 Hits 206 | . 2 11 118 36 39 Melee 4 | . . . 4 . . Projectile 202 | . 2 11 114 36 39 Critical Strikes 9 | . . . 6 1 2 Part Disruptions 1 | . . . 1 . . Damage Taken 3399 | . 22 226 1687 614 850 Core 1404 | . . 63 155 336 850 Absorbed by Shields . | . . . . . . Core Remaining (%) 81 | 100 100 84 71 52 . Volleys Fired 134 | 10 1 22 93 8 . Largest 3 | 2 2 2 2 3 . Hottest 170 | 40 85 130 130 170 . Shots Fired 252 | 20 2 44 170 16 . Gun 184 | 20 2 40 114 8 . Cannon 47 | . . . 43 4 . Launcher 11 | . . 4 3 4 . Special 10 | . . . 10 . . Kinetic 61 | 20 1 16 20 4 . Thermal 149 | . 1 24 116 8 . Explosive 4 | . . 4 . . . Electromagnetic 38 | . . . 34 4 . Robot Hit Streak 14 | 7 3 6 14 9 . Robot Miss Streak 8 | 1 . 8 3 4 . Penetration Max . | . . . . . . Secondary Targets 3 | . . . 3 . . Max Gunslinging Chain 1 | . . . 1 . . Shots Hit Robots 153 | 15 2 20 109 7 . Core Hits 90 | 4 1 15 57 13 . Critical Kills . | . . . . . . Critical Parts Destroyed 1 | . . . 1 . . Critical Strikes 6 | . . . 6 . . Burn 4 | . . . 4 . . Destroy 1 | . . . 1 . . Blast 1 | . . . 1 . . Melee Attacks 1 | . . . 1 . . Impact 1 | . . . 1 . . Slashing . | . . . . . . Piercing . | . . . . . . Sneak Attacks . | . . . . . . Combat Hostiles . | . . . . . . Follow-up Attacks . | . . . . . . Damage Inflicted 3407 | 139 27 470 2190 580 1 Guns 1645 | 139 27 282 1149 48 . Cannons 715 | . . . 648 67 . Explosions 1046 | . . 188 393 465 . Melee . | . . . . . . Ramming 1 | . . . . . 1 Kinetic 535 | 139 10 63 256 67 . Thermal 1652 | . 17 219 1368 48 . Explosive 188 | . . 188 . . . Electromagnetic 1031 | . . . 566 465 . Impact . | . . . . . . Slashing . | . . . . . . Piercing . | . . . . . . Highest Corruption 1 | . . . 1 . . Average Corruption 1 | . . . 1 . . Corruption Purged . | . . . . . . Corruption Blocked . | . . . . . . Effects 2 | . . . 2 . . Message Errors 1 | . . . 1 . . Heat Flow Errors 1 | . . . 1 . . Overload Shots . | . . . . . . Overflow Damage 39 | . . . 38 1 . Projectiles 13 | . . . 13 . . Explosions 26 | . . . 25 1 . Melee . | . . . . . . Knockbacks 4 | . . . 4 . . Impact . | . . . . . . Kinetic 3 | . . . 3 . . Secondary 1 | . . . 1 . . Self-Inflicted Damage 170 | . . 57 52 61 . Shots 7 | . . 2 2 3 . Rammed 1 | . . . . . 1 Targets Rammed 1 | . . . . . 1 Kicked . | . . . . . . Crushed . | . . . . . . Highest Temperature 220 | . 44 220 162 6 . Average Temperature 57 | . 24 76 52 2 . Received Heat Transfer 921 | . 12 30 594 162 123 Effects 4 | . . 4 . . . Interference 4 | . . 4 . . . Siege Activations . | . . . . . . Martial Activations . | . . . . . . Shielding Activations . | . . . . . . Robots Disrupted . | . . . . . . Combat Hostiles . | . . . . . . Robots Corrupted . | . . . . . . Combat Hostiles . | . . . . . . Parts Fried 2 | . . . . 2 . Impact Corruptions . | . . . . . . Robots Melted . | . . . . . . Combat Hostiles . | . . . . . . Parts Melted 3 | . . . 3 . . Heat Transferred 3704 | . 37 518 3038 111 . Parts Sabotaged . | . . . . . . Parts Stolen . | . . . . . . Parts Stripped . | . . . . . . Power Chain Reactions 4 | . . . 3 1 . Alert | -11 -10 -9 -8 -7 -6 ------- Run | Yrd Mat Mat Mat Fac Fac Maximum Alert Level 1 | . . . 1 . . Low Security (%) 98 | 100 100 100 97 100 100 Level 1 1 | . . . 2 . . Level 2 . | . . . . . . Level 3 . | . . . . . . Level 4 . | . . . . . . Level 5 . | . . . . . . High Security . | . . . . . . Max Security . | . . . . . . Peak Influence 231 | 10 30 156 231 171 83 Initial 102 | . . 3 14 102 83 Average 67 | . 2 55 86 36 53 Influence Increases 1544 | 10 34 229 949 248 74 Destroy 0b10 Robot/C 820 | . 20 140 540 120 . Destroy 0b10 Robot/NC 60 | 10 . 15 25 10 . Destroy Leader 168 | . 10 14 134 10 . Successful Hack 35 | . 4 4 13 . 14 Disable Machine 75 | . . . 60 15 . Destroy Structure 71 | . . 41 27 3 . Partial Spotted 30 | . . . 30 . . Lose Combat Pursuer 285 | . . 15 120 90 60 Influence Decreases 1497 | 10 24 204 759 302 198 Entered New Map 239 | . . 7 21 123 88 Time Decay 1108 | 10 24 187 618 169 100 Lost Part 140 | . . 10 110 10 10 Lost Ally 10 | . . . 10 . . Squads Dispatched 9 | . 1 . 4 1 3 Investigation 4 | . 1 . 1 . 2 Extermination 2 | . . . . 1 1 Reinforcement 3 | . . . 3 . . Assault . | . . . . . . Garrison . | . . . . . . Intercept . | . . . . . . Searches Triggered . | . . . . . . Construction Impeded 1 | . . . 1 . . Haulers Reinforced . | . . . . . . Active Scanning Responses . | . . . . . . Cargo Convoy Interrupts . | . . . . . . Stealth | -11 -10 -9 -8 -7 -6 --------- Run | Yrd Mat Mat Mat Fac Fac Distress Signals 7 | . . 2 3 1 1 Communications Jammed . | . . . . . . Distress Signals . | . . . . . . Times Spotted 90 | . 3 12 47 14 14 Peak Tracking Total 8 | . 2 3 7 7 8 Tactical Retreats 14 | . . 1 6 3 4 Traps | -11 -10 -9 -8 -7 -6 ------- Run | Yrd Mat Mat Mat Fac Fac Traps Triggered 8 | . 1 3 2 . 2 Indirectly . | . . . . . . Trap Hack Attempts . | . . . . . . Triggered . | . . . . . . Disarmed . | . . . . . . Reprogrammed . | . . . . . . Reused . | . . . . . . Traps Extracted . | . . . . . . Installed . | . . . . . . Triggered . | . . . . . . Machines | -11 -10 -9 -8 -7 -6 ---------- Run | Yrd Mat Mat Mat Fac Fac Machines Disabled 5 | . . . 4 1 . Max in Single Turn 1 | . . . 1 1 . Garrison Access 1 | . . . 1 . . Machines Repaired . | . . . . . . Machines Dismantled . | . . . . . . Machines Sabotaged . | . . . . . . Overloaded Fab Kills . | . . . . . . Hacking | -11 -10 -9 -8 -7 -6 --------- Run | Yrd Mat Mat Mat Fac Fac Machines Accessed 15 | . 3 2 7 1 2 Terminals 14 | . 3 2 6 1 2 Fabricators . | . . . . . . Repair Stations . | . . . . . . Recycling Units . | . . . . . . Scanalyzers . | . . . . . . Garrison Access 1 | . . . 1 . . Total Hacks 42 | . 7 5 24 1 5 Successful 14 | . 2 2 8 . 2 Failed 28 | . 5 3 16 1 3 Catastrophic 5 | . . . 3 1 1 Database Lockouts . | . . . . . . Manual 32 | . 7 5 15 1 4 Terminals 40 | . 7 5 22 1 5 Fabricators . | . . . . . . Repair Stations . | . . . . . . Recycling Units . | . . . . . . Scanalyzers . | . . . . . . Garrison Access 2 | . . . 2 . . Terminal Hacks 3 | . . . 2 . 1 Level Access Points 1 | . . . 1 . . Branch Access Points 2 | . . . 1 . 1 Fabricator Hacks . | . . . . . . Repair Station Hacks . | . . . . . . Recycling Unit Hacks . | . . . . . . Scanalyzer . | . . . . . . Garrison Access Hacks 1 | . . . 1 . . Seal Access 1 | . . . 1 . . Unauthorized Hacks 10 | . 2 2 5 . 1 Terminals 10 | . 2 2 5 . 1 Assimilate 1 | . . . 1 . . Botnet 9 | . 2 2 4 . 1 Fabricators . | . . . . . . Repair Stations . | . . . . . . Recycling Units . | . . . . . . Scanalyzers . | . . . . . . Garrison Access . | . . . . . . Data Cores Recovered . | . . . . . . Used . | . . . . . . Hacking Detections 10 | . 2 1 4 1 2 Full Trace Events 4 | . . . 3 . 1 Feedback Events . | . . . . . . Feedback Blocked . | . . . . . . Robot Schematics Acquired . | . . . . . . Robots Built . | . . . . . . Authchips . | . . . . . . Time . | . . . . . . Total Robot Build Rating . | . . . . . . Part Schematics Acquired . | . . . . . . Parts Built . | . . . . . . Authchips . | . . . . . . Time . | . . . . . . Total Part Build Rating . | . . . . . . Parts Repaired . | . . . . . . Time . | . . . . . . Parts Recycled . | . . . . . . Recycled Matter . | . . . . . . Retrieved Matter . | . . . . . . Retrieved Components . | . . . . . . Parts Scanalyzed . | . . . . . . Part Schematics Acquired . | . . . . . . Parts Damaged . | . . . . . . Bothacking | -11 -10 -9 -8 -7 -6 ------------ Run | Yrd Mat Mat Mat Fac Fac Used RIF Installer . | . . . . . . Robots Hacked . | . . . . . . Non-combat . | . . . . . . Combat . | . . . . . . Robot Hacks Applied . | . . . . . . Relay Couplers Released . | . . . . . . Fabnet Peak Effective % . | . . . . . . Robots Rewired . | . . . . . . Allies Hacked . | . . . . . . Hacks Repelled . | . . . . . . Allies | -11 -10 -9 -8 -7 -6 -------- Run | Yrd Mat Mat Mat Fac Fac Total Allies 1 | . . . 1 . . Largest Group 1 | . . . 1 . . Highest-Rated Group 10 | . . . 10 . . Highest-Rated Ally 10 | . . . 10 . . Total Orders 1 | . . . 1 . . ROAM 1 | . . . 1 . . Ally Attacks . | . . . . . . Total Damage . | . . . . . . Kills . | . . . . . . Allies Corrupted . | . . . . . . Allies Melted . | . . . . . . Intel | -11 -10 -9 -8 -7 -6 ------- Run | Yrd Mat Mat Mat Fac Fac Active Infowar (turns) 3935 | 33 223 456 2572 587 64 Sensors 1350 | . . . 699 587 64 Seismic 2585 | 33 223 456 1873 . . Robot Analysis Total . | . . . . . . Derelict Logs Recovered . | . . . . . . Drone Launches . | . . . . . . Drone Recoveries . | . . . . . . Exploration | -11 -10 -9 -8 -7 -6 ------------- Run | Yrd Mat Mat Mat Fac Fac Turns Passed 4230 | 116 223 481 2573 631 206 Spaces Moved 2939 | 65 167 312 1514 521 360 Core 447 | 7 . . . 80 360 Treads . | . . . . . . Legs 2147 | 58 167 312 1169 441 . Wheels 345 | . . . 345 . . Hover . | . . . . . . Flight . | . . . . . . Fastest Speed 50 | 50 120 120 120 50 50 Average Speed 111 | 112 120 120 123 110 50 Slowest Speed 800 | 120 120 120 193 800 50 Overloaded Moves . | . . . . . . Propulsion Burnouts . | . . . . . . Robots Hopped . | . . . . . . Potential Cave-ins . | . . . . . . Cave-ins Triggered . | . . . . . . Exploration Rate (%) 27 | 4 33 27 68 14 17 Regions Visited 5 Branch Regions . Pre-discovered Areas . | . . . . . . Known Exits Taken 2 | . . . 1 1 . Unknown Exits Taken 3 | 1 1 1 . . . Scrap Searched . | . . . . . . Spaces Dug . | . . . . . . Terrain Destroyed 67 | . . 46 18 3 . Melee . | . . . . . . Projectile 6 | . . . 6 . . AOE 61 | . . 46 12 3 . Terrain Rammed . | . . . . . . Walls Destroyed . | . . . . . . Machines Disabled . | . . . . . . Actions | -11 -10 -9 -8 -7 -6 --------- Run | Yrd Mat Mat Mat Fac Fac Total 3643 | 89 189 377 2037 565 386 Wait 414 | 4 7 29 341 12 21 Move 2934 | 64 166 311 1513 520 360 Hop . | . . . . . . Pick Up 50 | 4 9 3 26 6 2 Fast Attach 22 | 6 . 2 13 1 . Attach 19 | 1 1 2 11 3 1 Detach 1 | . . . 1 . . Swap 23 | . 1 5 16 1 . Drop 39 | . 4 3 22 10 . Fire 134 | 10 1 22 93 8 . Melee 1 | . . . 1 . . Ram 1 | . . . . . 1 Kick . | . . . . . . Crush . | . . . . . . Escape Stasis . | . . . . . . Rewire 5 | . . . . 4 1 Trap . | . . . . . . Miscellaneous . | . . . . . . Route ------- -11/Scrapyard -10/Materials -9/Materials -8/Materials (discovered 3 exits: *Fac x3) -7/Factory -6/Factory (discovered 3 exits: [*Fac] / Low x2) History --------- Turn | Location | Event 6 | -11/Scrapyard | Discovered new exit (range 15) 117 | -11/Scrapyard | Entered Materials 282 | -10/Materials | Discovered new exit (range 16) 305 | -10/Materials | Build established: Mutant 340 | -10/Materials | Entered another Materials area 340 | -9/Materials | Evolved 2 slots: Propulsion x1, Utility x1 552 | -9/Materials | Discovered new exit (range 7) 821 | -9/Materials | Entered another Materials area 821 | -8/Materials | Evolved 2 slots: Propulsion x1, Utility x1 1040 | -8/Materials | Lost 4 parts (1p3n) 1357 | -8/Materials | Build established: Scavenger-Mutant 1392 | -8/Materials | Discovered new exit (range 16) 2781 | -8/Materials | Build established: Mutant 2923 | -8/Materials | Discovered new exit (range 16) 2939 | -8/Materials | Identified exit to Factory 3394 | -8/Materials | Entered Factory 3394 | -7/Factory | Evolved 2 slots: Utility x1, Weapon x1 3694 | -7/Factory | Build established: Skirmisher 3811 | -7/Factory | Discovered new exit (range 16) 3828 | -7/Factory | Identified exit to Factory 3981 | -7/Factory | Released all parts (9) 4025 | -7/Factory | Entered another Factory area 4025 | -6/Factory | Evolved 2 slots: Propulsion x1, Utility x1 4085 | -6/Factory | Identified exit to Lower Caves 4170 | -6/Factory | Core integrity fell below 50% 4172 | -6/Factory | Discovered new exit (range 14) 4182 | -6/Factory | Core integrity fell below 20% 4223 | -6/Factory | Spotted B-75 Beast 4231 | -6/Factory | Destroyed by G-50 Soldier with Heavy Laser Last Messages --------------- Platform. 04169_ Triggered Heavy Explosive Trap. 04169_ An explosion rips through the floor. 04172_ EXIT=FOUND 04173_ Knocked back. 04175_ Penetrated by Slug. 04175_ Knocked back. 04177_ U-05 Engineer builds a Wall. 04181_ Penetrated by Slug. 04181_ Knocked back. 04187_ Attempting to rewire I-36 Angel. 04187_ K-01 Serf pushes I-36 Angel. 04188_ Slammed into K-01 Serf. 04197_ Acquired 20 matter. 04222_ W-25 Informer sends out distress signal. 04223_ Knocked back. 04224_ U-05 Engineer builds a Wall. 04225_ ALERT: Potential suspicious activity detected, Programmers report to Factory Zone 9F. Map ----- +----------------------------------------------------+ | ?????????????????????????????????????????????????? | | ?????????????????????????????????????????????????? | | ?????????????????????????????????????????????????? | | ?????????????????????????????????????????????????? | | ?????????????????????????????????????????????????? | | ?????????????????????????????????????????????????? | | ?????????????????????????????????????????????????? | | ?????????????????????????????????????????????????? | | ?????????????????????????????????????????????????? | | ???????????? ???????????????????????????????????? | | ??? ???????? ????? ??????????????????????????? | | ??? ?"""""" #???? "?????????????????????????? | | ?? """"""" #???? "?????????????????????????? | | ? """"""" #???? "?????????????????????????? | | #? #???? ?????????????????????????? | | # + """ ""????????????????????????? | | # # """ "?????????????????????????? | | # # """ "?????????????????????????? | | #? #? ??????????????????????????? | | #??# # #?? ??????????????????????????? | | #??? # ####/############g####??????????? | | #????## w u g u ?????????? | | ####### gg ?????????? | | / u ????????? | | ####### u ????????? | | #?????###### @ % ????????? | | #??????????################+######???????????????? | | ?????????????????????????????????????????????????? | | ?????????????????????????????????????????????????? | | ?????????????????????????????????????????????????? | | ?????????????????????????????????????????????????? | | ?????????????????????????????????????????????????? | | ?????????????????????????????????????????????????? | | ?????????????????????????????????????????????????? | | ?????????????????????????????????????????????????? | | ?????????????????????????????????????????????????? | | ?????????????????????????????????????????????????? | | ?????????????????????????????????????????????????? | | ?????????????????????????????????????????????????? | | ?????????????????????????????????????????????????? | | ?????????????????????????????????????????????????? | | ?????????????????????????????????????????????????? | | ?????????????????????????????????????????????????? | | ?????????????????????????????????????????????????? | | ?????????????????????????????????????????????????? | | ?????????????????????????????????????????????????? | | ?????????????????????????????????????????????????? | | ?????????????????????????????????????????????????? | | ?????????????????????????????????????????????????? | | ?????????????????????????????????????????????????? | +----------------------------------------------------+ Best States ------------- Heat Dissipation 61 Energy Generation 12 Energy Capacity 265 Matter Stores 300 Matter Capacity 300 Sight Range 16 Robot Scan Range 15 Terrain Scan Density 10 Evasion (%) 55 Targeting Accuracy 6 Particle Charging 15 Offensive Hacking 10 Item Schematics ----------------- None Robot Schematics ------------------ None Fabricated ------------ Nothing Repaired ---------- Nothing Alien Tech Used ----------------- None Achievements -------------- None Challenges ------------ None Game ------ Seed MachineAlertInitializer Manual? 0 Play Time 00:43:47 Cumulative 52.5 hours Start 2025.07.16 @ 03:16:49 End 2025.07.16 @ 04:18:41 Sessions 2 Manual Loads 0 Difficulty Rogue Special Mode None Game No. 67 Rogue 67 Adventurer 0 Explorer 0 Win Type - Total 0 Types 0/0/0/0/0/0/0/0/0/0 Lore% 40 Gallery% 32 Achievement% 33 Wizard Run 0 Options --------- Layout 1 ASCII 0 Keyboard 0 Movement Arrows Keybinds 0 Fullscreen 1 Font 24/Smallcaps Map View 50x35 Zoom Use 0% Tactical HUD 1 Map Filters NONE Filters NONE Steam 1 RUN: 55e1eeb1-586a-4815-866c-77939dedd799